fUST/lending_fUST_20240508
["ID","MTS","AMOUNT","RATE_DAILY","PERIOD"]
[326625983,1715159449966,-7949.13788461,0.0002089,2]
[326625984,1715159449976,-330.43257549,0.00020911,2]
[326625985,1715159449986,-273.39263722,0.00020911,2]
[326625986,1715159449996,-1057.88956582,0.00020912,2]
[326625987,1715159450006,-19726.54546661,0.00020912,2]
[326626054,1715159504234,306.42025241,0.00020447,2]
[326626055,1715159507014,264.111849,0.0001589,2]
[326626056,1715160085644,3455.83254005,9.999e-05,2]
[326626058,1715160250753,465.25036391,9.999e-05,2]
[326626059,1715160338532,288.45698863,0.000137,2]
[326626060,1715160393154,-220.920602,0.0001589,2]
[326626061,1715160393194,-379.96231687,0.00018,2]
[326626062,1715160393792,-240.99639,0.00018039,2]
[326626063,1715160393821,-604.62485122,0.000185,2]
[326626064,1715160393852,-3826.34270526,0.000189,2]
[326626065,1715160393881,-922.18782096,0.000199,2]
[326626066,1715160393909,-681.12,0.0001999,3]
[326626067,1715160393938,-200.46375748,0.00019998,2]
[326626068,1715160393969,-1031.34022388,0.00019998,2]
[326626069,1715160393996,-176.57338383,0.00019998,2]
[326626070,1715160394024,-3388.47783665,0.00019999,2]
[326626071,1715160394052,-464.93888803,0.00019999,2]
[326626072,1715160394079,-20000.0,0.0002,5]
[326626073,1715160394106,-242.02466203,0.0002,2]
[326626074,1715160394133,-5467.6138057,0.0002,2]
[326626075,1715160394162,-330.43257549,0.0002,2]
[326626076,1715160394191,-67507.49755129,0.0002,2]
[326626077,1715160394220,-200.0,0.0002,2]
[326626078,1715160394252,-42416.78765009,0.0002,2]
[326626079,1715160394278,-1902.28060024,0.000201,3]
[326626080,1715160394304,-151.16746634,0.00020406,2]
[326626081,1715160394333,-51342.02642371,0.00020909,2]
[326626082,1715160394358,-10615.15949594,0.00020912,2]
[326626083,1715160394383,-154.53639083,0.00020912,2]
[326626084,1715160394409,-3958.12031286,0.00021,2]
[326626085,1715160394435,-500.0,0.000216,2]
[326626086,1715160394462,-177.0,0.000216,2]
[326626087,1715160394488,-160.0,0.000216,2]
[326626088,1715160394513,-7333.3452745,0.00021918,2]
[326626089,1715160394538,-166.666666,0.00021918,2]
[326626090,1715160394562,-305.99165233,0.00022,2]
[326626091,1715160394587,-2000.0,0.00022039,2]
[326626092,1715160394612,-150.0,0.00022114,2]
[326626093,1715160394638,-1000.0,0.00022136,2]
[326626094,1715160394668,-464.0206816,0.00022139,5]
[326626095,1715160394695,-117617.66653529,0.00022139,10]
[326626096,1715160394722,-1124.15491597,0.0002226,2]
[326626097,1715160394750,-264.111849,0.00022264,2]
[326626098,1715160394779,-220.920602,0.00022264,2]
[326626099,1715160394806,-151.0,0.00022419,2]
[326626100,1715160394834,-166.666666,0.00022431,2]
[326626101,1715160394860,-295.0,0.000226,2]
[326626102,1715160394886,-166.666666,0.00022944,2]
[326626103,1715160394913,-1372.02812933,0.00023,2]
[326626104,1715160394938,-154.50558214,0.00023,2]
[326626105,1715160394965,-5013.64510414,0.00023,2]
[326626106,1715160394991,-150.0,0.0002304,2]
[326626107,1715160395016,-154.50558214,0.00023108,2]
[326626108,1715160395042,-3966.74516132,0.00023108,2]
[326626109,1715160395069,-150.0,0.0002328,2]
[326626110,1715160395094,-645.2077458,0.00023373,2]
[326626111,1715160395122,-166.666666,0.00023456,2]
[326626112,1715160395150,-150.0,0.0002352,2]
[326626113,1715160395177,-168.09498338,0.0002376,2]
[326626114,1715160395205,-150.0,0.0002376,2]
[326626115,1715160395236,-3826.34270526,0.000239,2]
[326626116,1715160395263,-166.666666,0.00023969,2]
[326626117,1715160395291,-701.22868932,0.00024,2]
[326626118,1715160395431,-160.0,0.00024,2]
[326626119,1715160395459,-280.0,0.00024,2]
[326626120,1715160395486,-280.0,0.00024,2]
[326626121,1715160395511,-150.0,0.00024,2]
[326626122,1715160395537,-150.0,0.0002424,2]
[326626123,1715160395575,-150.0,0.0002448,2]
[326626124,1715160395605,-166.666666,0.00024482,2]
[326626125,1715160395633,-193.80442549,0.00024489,2]
[326626126,1715160395661,-263.82780671,0.00024489,2]
[326626127,1715160395689,-200.52962551,0.00024489,2]
[326626128,1715160395720,-255.63637849,0.00024489,2]
[326626129,1715160395749,-160.0,0.00024524,3]
[326626130,1715160395777,-621.26038729,0.00024542,2]
[326626131,1715160395805,-1795.38668357,0.00024566,2]
[326626132,1715160395834,-1300.0,0.00024595,2]
[326626133,1715160395861,-1795.38668357,0.000246,2]
[326626134,1715160395889,-1795.38668357,0.00024604,2]
[326626135,1715160395918,-972.87310957,0.00024612,2]
[326626136,1715160397178,-152.58301554,0.00024629,2]
[326626137,1715160398496,-972.87310957,0.00024633,2]
[326626138,1715160399763,-1300.0,0.00024654,2]
[326626139,1715160401211,-150.91370362,0.00024656,2]
[326626140,1715160402616,-679.56,0.00024657,2]
[326626141,1715160404265,-340.72,0.00024657,2]
[326626142,1715160406091,-300.0,0.00024657,2]
[326626143,1715160406120,-500.0,0.00024657,2]
[326626144,1715160406148,-410.83532807,0.00024657,2]
[326626145,1715160406181,-500.0,0.00024657,2]
[326626146,1715160406209,-500.0,0.00024657,2]
[326626147,1715160406243,-500.0,0.00024657,2]
[326626148,1715160406272,-500.0,0.00024657,2]
[326626149,1715160406299,-500.0,0.00024657,2]
[326626150,1715160406326,-737.8,0.00024657,2]
[326626151,1715160406354,-500.0,0.00024657,2]
[326626152,1715160406383,-500.0,0.00024657,2]
[326626153,1715160406410,-500.0,0.00024657,2]
[326626154,1715160406437,-500.0,0.00024657,2]
[326626155,1715160406465,-500.0,0.00024657,2]
[326626156,1715160406495,-500.0,0.00024657,2]
[326626157,1715160406521,-500.0,0.00024657,2]
[326626158,1715160406549,-2275.61,0.00024657,2]
[326626159,1715160406576,-500.0,0.00024657,2]
[326626160,1715160406603,-500.0,0.00024657,2]
[326626161,1715160406631,-500.0,0.00024657,2]
[326626162,1715160406658,-500.0,0.00024657,2]
[326626163,1715160406684,-500.0,0.00024657,2]
[326626164,1715160406710,-500.0,0.00024657,2]
[326626165,1715160406738,-500.0,0.00024657,2]
[326626166,1715160406763,-500.0,0.00024657,2]
[326626167,1715160406789,-500.0,0.00024658,2]
[326626168,1715160406819,-200.0,0.00024658,2]
[326626169,1715160406846,-200.0,0.00024658,15]
[326626170,1715160406872,-380.0,0.00024658,2]
[326626171,1715160406899,-1795.38668357,0.00024659,2]
[326626172,1715160406937,-1795.38668357,0.00024667,2]
[326626173,1715160406973,-160.0,0.00024673,2]
[326626174,1715160407007,-1300.0,0.00024684,2]
[326626175,1715160407037,-972.87310957,0.00024691,2]
[326626176,1715160407069,-150.0,0.0002472,2]
[326626177,1715160407098,-160.0,0.00024734,4]
[326626178,1715160407128,-972.87310957,0.00024741,2]
[326626179,1715160407162,-152.58301554,0.00024837,2]
[326626180,1715160407191,-152.58301554,0.00024861,2]
[326626181,1715160407226,-150.91370362,0.00024865,2]
[326626182,1715160407262,-1300.0,0.00024867,2]
[326626183,1715160407293,-150.91370362,0.00024884,2]
[326626184,1715160407324,-972.87310957,0.00024926,2]
[326626185,1715160407353,-679.56,0.00024931,2]
[326626186,1715160407383,-300.0,0.00024931,2]
[326626187,1715160407414,-500.0,0.00024931,2]
[326626188,1715160407444,-500.0,0.00024931,2]
[326626189,1715160407474,-500.0,0.00024931,2]
[326626190,1715160407505,-500.0,0.00024931,2]
[326626191,1715160407535,-500.0,0.00024931,2]
[326626192,1715160407564,-500.0,0.00024931,2]
[326626193,1715160407596,-737.8,0.00024931,2]
[326626194,1715160407626,-500.0,0.00024931,2]
[326626195,1715160407657,-500.0,0.00024931,2]
[326626196,1715160407687,-500.0,0.00024931,2]
[326626197,1715160407719,-500.0,0.00024931,2]
[326626198,1715160407751,-500.0,0.00024931,2]
[326626199,1715160407782,-500.0,0.00024931,2]
[326626200,1715160407811,-2275.61,0.00024931,2]
[326626201,1715160407839,-500.0,0.00024931,2]
[326626202,1715160407871,-500.0,0.00024931,2]
[326626203,1715160407903,-500.0,0.00024931,2]
[326626204,1715160407934,-539.18,0.00024931,2]
[326626205,1715160407962,-500.0,0.00024931,2]
[326626206,1715160407993,-500.0,0.00024931,2]
[326626207,1715160408024,-500.0,0.00024931,2]
[326626208,1715160408060,-581.0,0.00024932,2]
[326626209,1715160408089,-152.58301554,0.00024941,2]
[326626210,1715160408119,-1300.0,0.00024941,2]
[326626211,1715160408147,-160.0,0.00024943,5]
[326626212,1715160408181,-150.91370362,0.00024944,2]
[326626213,1715160408211,-150.0,0.0002496,2]
[326626214,1715160408242,-979.46351134,0.00024978,11]
[326626215,1715160408271,-152.58301554,0.0002498,2]
[326626216,1715160408300,-2040.86992393,0.00025,2]
[326626217,1715160408329,-500.02574,0.00025,7]
[326626218,1715160408359,-160.0,0.00025,2]
[326626219,1715160408388,-300.0,0.00025,2]
[326626220,1715160408419,-300.0,0.00025,2]
[326626221,1715160408450,-1837.64422607,0.00025,2]
[326626222,1715160408482,-1017.49885344,0.00025,2]
[326626223,1715160408510,-302.32321741,0.00025,2]
[326626224,1715160408542,-300.0,0.00025,2]
[326626225,1715160408573,-300.0,0.00025,2]
[326626226,1715160408605,-300.0,0.00025,2]
[326626227,1715160408812,-300.0,0.00025,2]
[326626228,1715160408842,-300.0,0.00025,2]
[326626229,1715160408871,-300.0,0.00025,2]
[326626230,1715160408899,-300.0,0.00025,2]
[326626231,1715160408927,-300.0,0.00025,2]
[326626232,1715160408954,-300.0,0.00025,2]
[326626233,1715160408985,-300.0,0.00025,2]
[326626234,1715160409013,-300.0,0.00025,2]
[326626235,1715160409041,-300.0,0.00025,2]
[326626236,1715160410827,-1382.05717476,0.00025,2]
[326626237,1715160410864,-360.22508664,0.00025,2]
[326626238,1715160410895,-509.34966484,0.00025,2]
[326626239,1715160410924,-855.0,0.00025,2]
[326626240,1715160410952,-8000.0,0.00025,2]
[326626241,1715160410984,-178.0,0.00025,5]
[326626242,1715160411012,-569.92664492,0.00025,2]
[326626243,1715160411042,-410.0,0.00025,2]
[326626244,1715160411070,-410.0,0.00025,2]
[326626245,1715160411096,-9968.32785007,0.00025,2]
[326626246,1715160411124,-991.55469962,0.00025,2]
[326626247,1715160411151,-163.632351,0.00025,2]
[326626248,1715160411185,-154.62889065,0.00025,2]
[326626249,1715160411211,-581.0,0.00025,2]
[326626250,1715160411243,-1300.0,0.00025016,2]
[326626251,1715160411272,-972.87310957,0.00025037,2]
[326626252,1715160411297,-152.58301554,0.00025063,2]
[326626253,1715160411323,-1795.38668357,0.00025079,2]
[326626254,1715160411353,-1300.0,0.000251,2]
[326626255,1715160411385,-1300.0,0.00025124,2]
[326626256,1715160411414,-190.97577956,0.00025128,2]
[326626257,1715160411444,-150.91370362,0.00025136,2]
[326626258,1715160411475,-152.58301554,0.0002514,2]
[326626259,1715160411505,-150.91370362,0.00025143,2]
[326626260,1715160411532,-972.87310957,0.00025144,2]
[326626261,1715160411560,-150.91370362,0.00025145,2]
[326626262,1715160412070,-160.0,0.00025152,6]
[326626263,1715160412632,-1300.0,0.00025194,2]
[326626264,1715160412659,-972.87310957,0.00025196,2]
[326626265,1715160412689,-150.0,0.000252,2]
[326626266,1715160412718,-150.91370362,0.00025201,2]
[326626267,1715160412747,-679.56,0.00025205,2]
[326626268,1715160412774,-300.0,0.00025205,2]
[326626269,1715160412800,-500.0,0.00025205,2]
[326626270,1715160412828,-500.0,0.00025205,2]
[326626271,1715160412854,-500.0,0.00025205,2]
[326626272,1715160412882,-500.0,0.00025205,2]
[326626273,1715160412910,-500.0,0.00025205,2]
[326626274,1715160412937,-737.8,0.00025205,2]
[326626275,1715160412965,-500.0,0.00025205,2]
[326626276,1715160412996,-500.0,0.00025205,2]
[326626277,1715160413025,-500.0,0.00025205,2]
[326626278,1715160413054,-500.0,0.00025205,2]
[326626279,1715160413081,-500.0,0.00025205,2]
[326626280,1715160413109,-500.0,0.00025205,2]
[326626281,1715160413136,-2275.61,0.00025205,2]
[326626282,1715160413166,-500.0,0.00025205,2]
[326626283,1715160413195,-500.0,0.00025205,2]
[326626284,1715160413225,-500.0,0.00025205,2]
[326626285,1715160413255,-500.0,0.00025205,2]
[326626286,1715160413282,-972.87310957,0.0002521,2]
[326626287,1715160413308,-320.0,0.00025221,2]
[326626288,1715160413335,-150.91370362,0.00025226,2]
[326626289,1715160413363,-1300.0,0.00025226,2]
[326626290,1715160413394,-166.03447125,0.00025237,2]
[326626291,1715160413420,-972.87310957,0.00025247,2]
[326626292,1715160413446,-1795.38668357,0.00025252,2]
[326626293,1715160413474,-1795.38668357,0.00025255,2]
[326626294,1715160413501,-152.58301554,0.00025259,2]
[326626295,1715160413528,-972.87310957,0.00025327,2]
[326626296,1715160413555,-1300.0,0.00025328,2]
[326626297,1715160413581,-150.91370362,0.00025336,2]
[326626298,1715160413609,-1300.0,0.0002534,2]
[326626299,1715160413636,-190.0,0.00025352,2]
[326626300,1715160413663,-160.0,0.00025362,7]
[326626301,1715160413691,-157.86546882,0.00025373,2]
[326626302,1715160413718,-166.03447125,0.00025389,2]
[326626303,1715160413747,-1795.38668357,0.00025414,2]
[326626304,1715160413779,-972.87310957,0.00025417,2]
[326626305,1715160413813,-150.0,0.0002544,2]
[326626306,1715160413842,-150.91370362,0.00025455,2]
[326626307,1715160413871,-679.56,0.00025479,2]
[326626308,1715160413899,-500.0,0.00025479,2]
[326626309,1715160413928,-500.0,0.00025479,2]
[326626310,1715160413957,-500.0,0.00025479,2]
[326626311,1715160414092,-500.0,0.00025479,2]
[326626312,1715160414122,-737.8,0.00025479,2]
[326626313,1715160414152,-500.0,0.00025479,2]
[326626314,1715160414181,-500.0,0.00025479,2]
[326626315,1715160414209,-500.0,0.00025479,2]
[326626316,1715160414244,-500.0,0.00025479,2]
[326626317,1715160414276,-2275.61,0.00025479,2]
[326626318,1715160414305,-500.0,0.00025479,2]
[326626319,1715160414334,-500.0,0.00025479,2]
[326626320,1715160414363,-500.0,0.00025479,2]
[326626321,1715160414391,-500.0,0.00025479,2]
[326626322,1715160414417,-972.87310957,0.00025513,2]
[326626323,1715160414445,-1300.0,0.00025529,2]
[326626324,1715160414476,-150.91370362,0.00025546,2]
[326626325,1715160414506,-1300.0,0.00025562,2]
[326626326,1715160414535,-152.58301554,0.00025567,2]
[326626327,1715160414565,-160.0,0.00025571,8]
[326626328,1715160414595,-152.58301554,0.00025582,2]
[326626329,1715160414625,-1795.38668357,0.00025595,2]
[326626330,1715160414654,-150.91370362,0.00025609,2]
[326626331,1715160414694,-1795.38668357,0.00025671,2]
[326626332,1715160414724,-972.87310957,0.00025672,2]
[326626333,1715160414754,-150.0,0.0002568,2]
[326626334,1715160414783,-1300.0,0.00025712,2]
[326626335,1715160414815,-152.58301554,0.00025735,2]
[326626336,1715160414844,-1795.38668357,0.00025735,2]
[326626337,1715160414873,-679.56,0.00025753,2]
[326626338,1715160414902,-500.0,0.00025753,2]
[326626339,1715160414932,-500.0,0.00025753,2]
[326626340,1715160414964,-500.0,0.00025753,2]
[326626341,1715160414997,-500.0,0.00025753,2]
[326626342,1715160415028,-737.8,0.00025753,2]
[326626343,1715160415060,-500.0,0.00025753,2]
[326626344,1715160415091,-151.33,0.00025753,2]
[326626345,1715160415121,-500.0,0.00025753,2]
[326626346,1715160415153,-192.43,0.00025753,2]
[326626347,1715160415187,-2275.61,0.00025753,2]
[326626348,1715160415218,-500.0,0.00025753,2]
[326626349,1715160415253,-272.79022099,0.00025753,2]
[326626350,1715160415282,-500.0,0.00025753,2]
[326626351,1715160415310,-150.91370362,0.00025767,2]
[326626352,1715160415337,-620.06301936,0.00025769,2]
[326626353,1715160415365,-1300.0,0.00025769,2]
[326626354,1715160415393,-356.55451742,0.00025769,2]
[326626355,1715160415419,-160.0,0.00025781,9]
[326626356,1715160415445,-210.08704825,0.00025786,3]
[326626357,1715160415475,-1300.0,0.00025792,2]
[326626358,1715160415501,-150.91370362,0.00025821,2]
[326626359,1715160415528,-1795.38668357,0.00025836,2]
[326626360,1715160415556,-1300.0,0.00025839,2]
[326626361,1715160415583,-1795.38668357,0.00025878,2]
[326626362,1715160415609,-581.0,0.0002589,2]
[326626363,1715160415637,-150.91370362,0.00025901,2]
[326626364,1715160415664,-150.0,0.0002592,2]
[326626365,1715160415692,-1300.0,0.00025944,2]
[326626366,1715160415719,-1795.38668357,0.00025948,2]
[326626367,1715160415747,-972.87310957,0.00025977,2]
[326626368,1715160415774,-150.91370362,0.00025986,2]
[326626369,1715160415800,-160.0,0.0002599,10]
[326626370,1715160415827,-152.58301554,0.00025991,2]
[326626371,1715160415862,-11132.72764724,0.00026,2]
[326626372,1715160415889,-2924.0,0.00026,7]
[326626373,1715160415916,-185.3104566,0.00026,2]
[326626374,1715160415943,-972.87310957,0.00026023,2]
[326626375,1715160415974,-679.56,0.00026027,2]
[326626376,1715160416004,-500.0,0.00026027,2]
[326626377,1715160416035,-500.0,0.00026027,2]
[326626378,1715160416063,-500.0,0.00026027,2]
[326626379,1715160416096,-500.0,0.00026027,2]
[326626380,1715160416124,-737.8,0.00026027,2]
[326626381,1715160416152,-500.0,0.00026027,2]
[326626382,1715160416183,-500.0,0.00026027,2]
[326626383,1715160416213,-2275.61,0.00026027,2]
[326626384,1715160416245,-500.0,0.00026027,2]
[326626385,1715160416274,-500.0,0.00026027,2]
[326626386,1715160416300,-150.91370362,0.00026078,2]
[326626387,1715160416326,-150.91370362,0.00026087,2]
[326626388,1715160416354,-972.87310957,0.00026101,2]
[326626389,1715160416381,-152.58301554,0.00026111,2]
[326626390,1715160416410,-1795.38668357,0.0002614,2]
[326626391,1715160416437,-1795.38668357,0.00026141,2]
[326626392,1715160416464,-972.87310957,0.00026142,2]
[326626393,1715160416492,-1300.0,0.00026145,2]
[326626394,1715160416518,-150.0,0.0002616,2]
[326626395,1715160416544,-972.87310957,0.00026167,2]
[326626396,1715160416573,-1795.38668357,0.00026183,2]
[326626397,1715160416600,-160.0,0.00026199,11]
[326626398,1715160416732,-1300.0,0.00026213,2]
[326626399,1715160416760,-150.91370362,0.00026243,2]
[326626400,1715160416788,-157.86546882,0.00026261,2]
[326626401,1715160416814,-150.91370362,0.00026265,2]
[326626402,1715160416842,-25318.55651842,0.00026266,8]
[326626403,1715160416870,-150.91370362,0.00026274,2]
[326626404,1715160416897,-9798.77977482,0.00026276,5]
[326626405,1715160416928,-6168.83096724,0.00026294,7]
[326626406,1715160416959,-5000.0,0.00026294,11]
[326626407,1715160416988,-5000.0,0.00026294,10]
[326626408,1715160417016,-679.56,0.00026301,2]
[326626409,1715160417046,-500.0,0.00026301,2]
[326626410,1715160417076,-500.0,0.00026301,2]
[326626411,1715160417105,-177.86,0.00026301,2]
[326626412,1715160417137,-737.8,0.00026301,2]
[326626413,1715160417167,-500.0,0.00026301,2]
[326626414,1715160417195,-500.0,0.00026301,2]
[326626415,1715160417229,-2275.61,0.00026301,2]
[326626416,1715160417259,-500.0,0.00026301,2]
[326626417,1715160417288,-500.0,0.00026301,2]
[326626418,1715160417318,-1300.0,0.00026309,2]
[326626419,1715160417348,-1795.38668357,0.00026311,2]
[326626420,1715160417378,-1300.0,0.00026313,2]
[326626421,1715160417407,-1795.38668357,0.00026335,2]
[326626422,1715160417435,-281.47653233,0.00026336,2]
[326626423,1715160417462,-68704.5956053,0.00026353,2]
[326626424,1715160417489,-153.0,0.00026356,2]
[326626425,1715160417518,-153.0,0.00026356,2]
[326626426,1715160417546,-152.58301554,0.00026364,2]
[326626427,1715160417575,-1795.38668357,0.00026375,2]
[326626428,1715160417604,-308.016324,0.00026388,2]
[326626429,1715160417633,-150.91370362,0.000264,2]
[326626430,1715160417662,-150.0,0.000264,2]
[326626431,1715160417691,-1795.38668357,0.00026403,2]
[326626432,1715160417721,-160.0,0.00026409,12]
[326626433,1715160417751,-150.91370362,0.00026423,2]
[326626434,1715160417780,-972.87310957,0.00026452,2]
[326626435,1715160417809,-972.87310957,0.00026478,2]
[326626436,1715160417838,-2617.96832084,0.00026488,2]
[326626437,1715160417867,-154.62889066,0.00026488,2]
[326626438,1715160417897,-15426.65976629,0.000265,2]
[326626439,1715160417926,-150.91370362,0.00026501,2]
[326626440,1715160417955,-540.28701062,0.0002655,2]
[326626441,1715160417985,-1300.0,0.00026552,2]
[326626442,1715160418017,-1300.0,0.00026565,2]
[326626443,1715160418049,-1300.0,0.00026574,2]
[326626444,1715160418079,-679.56,0.00026575,2]
[326626445,1715160418108,-500.0,0.00026575,2]
[326626446,1715160418139,-500.0,0.00026575,2]
[326626447,1715160418171,-737.8,0.00026575,2]
[326626448,1715160418206,-439.24,0.00026575,2]
[326626449,1715160418235,-500.0,0.00026575,2]
[326626450,1715160418270,-2275.61,0.00026575,2]
[326626451,1715160418299,-500.0,0.00026575,2]
[326626452,1715160418326,-500.0,0.00026575,2]
[326626453,1715160418355,-1300.0,0.00026579,2]
[326626454,1715160418382,-1795.38668357,0.0002659,2]
[326626455,1715160418409,-157.86546882,0.00026591,2]
[326626456,1715160418437,-1795.38668357,0.00026599,2]
[326626457,1715160418463,-160.0,0.00026618,13]
[326626458,1715160418490,-150.0,0.0002664,2]
[326626459,1715160418515,-6980.0,0.00026662,5]
[326626460,1715160418542,-190.97577957,0.00026694,2]
[326626461,1715160418569,-150.91370362,0.00026702,2]
[326626462,1715160418601,-152.58301568,0.00026731,2]
[326626463,1715160418629,-1795.38668357,0.00026781,2]
[326626464,1715160418655,-972.87310957,0.00026793,2]
[326626465,1715160418683,-2959.78352788,0.000268,3]
[326626466,1715160419319,-111267.2504836,0.000268,2]
[326626467,1715160419348,-972.87310957,0.00026814,2]
[326626468,1715160419375,-160.0,0.00026827,14]
[326626469,1715160419403,-1300.0,0.00026834,2]
[326626470,1715160419430,-679.56,0.00026849,2]
[326626471,1715160419457,-500.0,0.00026849,2]
[326626472,1715160419485,-500.0,0.00026849,2]
[326626473,1715160419512,-737.8,0.00026849,2]
[326626474,1715160419538,-500.0,0.00026849,2]
[326626475,1715160419566,-2275.61,0.00026849,2]
[326626476,1715160419593,-500.0,0.00026849,2]
[326626477,1715160419619,-500.0,0.00026849,2]
[326626478,1715160419646,-150.0,0.0002688,2]
[326626479,1715160419672,-2000.0,0.00026885,2]
[326626480,1715160419698,-972.87310957,0.00026885,2]
[326626481,1715160419725,-150.91370383,0.00026894,2]
[326626482,1715160419752,-157.86546885,0.00026947,2]
[326626483,1715160419779,-1795.38668357,0.0002695,2]
[326626484,1715160419899,-153.0,0.00026959,2]
[326626485,1715160419931,-200.0,0.00026965,120]
[326626486,1715160419957,-972.87310957,0.0002698,2]
[326626487,1715160419982,-166.666666,0.00026986,2]
[326626488,1715160420007,-9381.55295255,0.00027,2]
[326626489,1715160420034,-239.66751687,0.00027,10]
[326626490,1715160420059,-10000.0,0.00027,30]
[326626491,1715160420085,-358.5766605,0.00027,2]
[326626492,1715160420113,-1300.0,0.00027018,2]
[326626493,1715160420139,-1795.38668357,0.00027036,2]
[326626494,1715160420168,-160.0,0.00027037,15]
[326626495,1715160420195,-972.87310957,0.00027037,2]
[326626496,1715160420221,-620.00315097,0.00027057,2]
[326626497,1715160420252,-972.87310957,0.00027067,2]
[326626498,1715160421102,-1795.38668374,0.000271,2]
[326626499,1715160421133,-972.87310957,0.00027111,2]
[326626500,1715160421160,-1300.0,0.00027112,2]
[326626501,1715160421190,-972.87310957,0.00027115,2]
[326626502,1715160421215,-150.0,0.0002712,2]
[326626503,1715160421244,-679.56,0.00027123,2]
[326626504,1715160421270,-500.0,0.00027123,2]
[326626505,1715160421297,-500.0,0.00027123,2]
[326626506,1715160421324,-737.8,0.00027123,2]
[326626507,1715160421352,-500.0,0.00027123,2]
[326626508,1715160421379,-2275.61,0.00027123,2]
[326626509,1715160421406,-607.42163838,0.00027123,2]
[326626510,1715160421930,-508.32266847,0.00027123,2]
[326626511,1715160421957,-972.87310978,0.00027163,2]
[326626512,1715160421985,-582.0,0.00027185,2]
[326626513,1715160422012,-200.0,0.00027199,120]
[326626514,1715160422039,-160.0,0.00027246,16]
[326626515,1715160422067,-150.0,0.0002736,2]
[326626516,1715160422092,-679.56,0.00027397,2]
[326626517,1715160422121,-500.0,0.00027397,2]
[326626518,1715160422148,-500.0,0.00027397,2]
[326626519,1715160422179,-617.37258299,0.00027397,2]
[326626520,1715160422205,-500.0,0.00027397,2]
[326626521,1715160422234,-500.0,0.00027397,2]
[326626522,1715160422265,-500.0,0.00027397,2]
[326626523,1715160422292,-500.0,0.00027397,2]
[326626524,1715160422318,-500.0,0.00027397,2]
[326626525,1715160422346,-500.0,0.00027397,2]
[326626526,1715160422375,-500.0,0.00027397,2]
[326626527,1715160422402,-500.0,0.00027397,2]
[326626528,1715160422428,-500.0,0.00027397,2]
[326626529,1715160422454,-500.0,0.00027397,2]
[326626530,1715160422482,-500.0,0.00027397,2]
[326626531,1715160422508,-411.7372583,0.00027397,2]
[326626532,1715160422534,-500.0,0.00027397,2]
[326626533,1715160422561,-500.0,0.00027397,2]
[326626534,1715160422588,-500.0,0.00027397,30]
[326626535,1715160422615,-500.0,0.00027397,30]
[326626536,1715160422643,-500.0,0.00027397,30]
[326626537,1715160422670,-500.0,0.00027397,30]
[326626538,1715160422697,-500.0,0.00027397,30]
[326626539,1715160422724,-500.0,0.00027397,30]
[326626540,1715160424024,-500.0,0.00027397,30]
[326626541,1715160426035,-500.0,0.00027397,30]
[326626542,1715160426074,-500.0,0.00027397,30]
[326626543,1715160426102,-500.0,0.00027397,30]
[326626544,1715160426130,-500.0,0.00027397,30]
[326626545,1715160426163,-500.0,0.00027397,2]
[326626546,1715160426193,-500.0,0.00027397,2]
[326626547,1715160426224,-737.8,0.00027397,2]
[326626548,1715160426256,-500.0,0.00027397,2]
[326626549,1715160426284,-1000.0,0.00027397,4]